fUST/lending_fUST_20250717
["ID","MTS","AMOUNT","RATE_DAILY","PERIOD"]
[372654369,1752735050503,-646.42,0.00020045,2]
[372654370,1752735050512,-498.58,0.00020045,2]
[372654371,1752735050522,-913.15,0.00020045,2]
[372654372,1752735050531,-531.78,0.00020045,2]
[372654373,1752735050541,-460.0,0.00020046,2]
[372654374,1752735050550,-500.0,0.00020046,2]
[372654375,1752735050560,-460.0,0.00020048,2]
[372654376,1752735050570,-732.55,0.00020048,2]
[372654377,1752735050579,-551.29,0.00020048,2]
[372654378,1752735050591,-460.0,0.00020048,2]
[372654379,1752735050600,-460.0,0.00020048,2]
[372654380,1752735050610,-2703.32,0.00020048,2]
[372654381,1752735050620,-799.66,0.00020048,2]
[372654382,1752735050629,-460.0,0.00020048,2]
[372654383,1752735050639,-724.56,0.00020048,2]
[372654384,1752735050648,-460.0,0.00020049,2]
[372654385,1752735050658,-460.0,0.00020049,2]
[372654386,1752735050668,-1211.48,0.00020049,2]
[372654387,1752735050678,-664.88,0.00020049,2]
[372654388,1752735050687,-1887.15,0.00020049,2]
[372654389,1752735050696,-507.28,0.00020049,2]
[372654390,1752735050709,-460.0,0.0002005,2]
[372654391,1752735050719,-460.0,0.0002005,2]
[372654392,1752735050728,-460.0,0.0002005,2]
[372654393,1752735050738,-522.87,0.0002005,2]
[372654394,1752735050747,-460.0,0.0002005,2]
[372654395,1752735050757,-460.0,0.0002005,2]
[372654396,1752735050766,-460.0,0.0002005,2]
[372654397,1752735050775,-640.23,0.0002005,2]
[372654398,1752735050785,-625.48,0.0002005,2]
[372654399,1752735050794,-460.0,0.0002005,2]
[372654400,1752735050804,-460.0,0.0002005,2]
[372654401,1752735050813,-460.0,0.0002005,2]
[372654402,1752735050823,-460.0,0.0002005,2]
[372654403,1752735050833,-709.79,0.0002005,2]
[372654404,1752735050843,-460.0,0.0002005,2]
[372654405,1752735050853,-460.0,0.0002005,2]
[372654406,1752735050863,-460.0,0.0002005,2]
[372654407,1752735050872,-582.41255191,0.0002005,2]
[372654408,1752735050882,-645.82,0.0002005,2]
[372654409,1752735050891,-460.0,0.0002005,2]
[372654410,1752735050901,-460.0,0.00020051,2]
[372654411,1752735050911,-460.0,0.00020051,2]
[372654412,1752735050920,-460.0,0.00020051,2]
[372654413,1752735050929,-829.95,0.00020051,2]
[372654414,1752735050939,-460.0,0.00020051,2]
[372654415,1752735050948,-460.0,0.00020051,2]
[372654416,1752735050958,-460.0,0.00020051,2]
[372654417,1752735050967,-460.0,0.00020053,2]
[372654418,1752735050976,-597.24144798,0.00020053,2]
[372654419,1752735050986,-460.0,0.00020053,2]
[372654420,1752735050995,-353.0,0.00020072,2]
[372654421,1752735051005,-500.0,0.000201,2]
[372654422,1752735051015,-13345.35673131,0.00020107,2]
[372654423,1752735051025,-2935.39259025,0.00020178,2]
[372654424,1752735051034,-647.621214,0.00020187,2]
[372654425,1752735051044,-353.0,0.00020198,2]
[372654426,1752735051054,-353.0,0.00020217,2]
[372654427,1752735051064,-454.54545455,0.00020223,4]
[372654428,1752735051073,-1476.81,0.00020224,2]
[372654429,1752735051085,-2996.48,0.00020224,2]
[372654430,1752735051095,-929.92,0.00020224,2]
[372654431,1752735051104,-460.0,0.00020226,2]
[372654432,1752735051115,-460.0,0.00020226,2]
[372654433,1752735051125,-353.0,0.00020257,2]
[372654434,1752735051134,-5000.0,0.00020275,2]
[372654435,1752735051144,-160.0,0.0002028,3]
[372654436,1752735051154,-12607.95677342,0.000203,3]
[372654437,1752735051163,-214.44804168,0.000203,3]
[372654438,1752735051173,-476.16111942,0.000203,3]
[372654439,1752735051182,-13345.35673131,0.00020314,3]
[372654440,1752735051192,-460.0,0.00020314,2]
[372654441,1752735051203,-460.0,0.00020315,2]
[372654442,1752735051222,-460.0,0.00020315,2]
[372654443,1752735051237,-1843.02,0.00020315,2]
[372654444,1752735051247,-460.0,0.00020318,2]
[372654445,1752735051256,-3457.88,0.00020318,2]
[372654446,1752735051266,-789.83,0.00020318,2]
[372654447,1752735051276,-4699.05,0.00020318,2]
[372654448,1752735051285,-460.45,0.00020318,2]
[372654449,1752735051296,-2440.55,0.00020318,2]
[372654450,1752735051305,-460.0,0.00020318,2]
[372654451,1752735051314,-1913.65,0.00020318,2]
[372654452,1752735051324,-460.0,0.00020318,2]
[372654453,1752735051333,-1594.34,0.00020318,2]
[372654454,1752735051344,-626.01,0.00020318,2]
[372654455,1752735051353,-460.0,0.00020319,2]
[372654456,1752735051363,-417.16026138,0.00020319,2]
[372654457,1752735051372,-189.359729,0.00020319,2]
[372654458,1752735051382,-189.359729,0.00020319,2]
[372654459,1752735051391,-460.0,0.00020319,2]
[372654460,1752735051400,-460.0,0.00020319,2]
[372654461,1752735051410,-1300.71,0.00020319,2]
[372654462,1752735051419,-691.63,0.00020319,2]
[372654463,1752735051429,-474.33,0.00020319,2]
[372654464,1752735051439,-646.42,0.00020319,2]
[372654465,1752735051449,-498.58,0.00020319,2]
[372654466,1752735051459,-913.15,0.00020319,2]
[372654467,1752735051469,-531.78,0.00020319,2]
[372654468,1752735051479,-460.0,0.0002032,2]
[372654469,1752735051489,-500.0,0.0002032,2]
[372654470,1752735051498,-467.05548114,0.00020322,2]
[372654471,1752735051509,-732.55,0.00020322,2]
[372654472,1752735051518,-551.29,0.00020322,2]
[372654473,1752735051529,-460.0,0.00020322,2]
[372654474,1752735051538,-182.1089309,0.00020322,2]
[372654475,1752735051683,-2703.32,0.00020322,2]
[372654476,1752735051694,-799.66,0.00020322,2]
[372654477,1752735051703,-460.0,0.00020322,2]
[372654478,1752735051713,-724.56,0.00020322,2]
[372654479,1752735051723,-460.0,0.00020323,2]
[372654480,1752735051733,-460.0,0.00020323,2]
[372654481,1752735051744,-1211.48,0.00020323,2]
[372654482,1752735051754,-664.88,0.00020323,2]
[372654483,1752735051764,-1887.15,0.00020323,2]
[372654484,1752735051775,-507.28,0.00020323,2]
[372654485,1752735051784,-460.0,0.00020324,2]
[372654486,1752735051794,-460.0,0.00020324,2]
[372654487,1752735051804,-460.0,0.00020324,2]
[372654488,1752735051813,-522.87,0.00020324,2]
[372654489,1752735051823,-460.0,0.00020324,2]
[372654490,1752735051833,-460.0,0.00020324,2]
[372654491,1752735051845,-460.0,0.00020324,2]
[372654492,1752735051855,-640.23,0.00020324,2]
[372654493,1752735051865,-625.48,0.00020324,2]
[372654494,1752735051880,-460.0,0.00020324,2]
[372654495,1752735051891,-460.0,0.00020324,2]
[372654496,1752735051901,-460.0,0.00020324,2]
[372654497,1752735051910,-504.272118,0.00020324,2]
[372654498,1752735051920,-504.272118,0.00020324,2]
[372654499,1752735051930,-461.94764585,0.00020324,2]
[372654500,1752735051940,-709.79,0.00020324,2]
[372654501,1752735051949,-460.0,0.00020324,2]
[372654502,1752735051959,-602.16,0.00020324,2]
[372654503,1752735051969,-151.0,0.00020324,2]
[372654504,1752735051978,-151.0,0.00020324,2]
[372654505,1752735051988,-645.82,0.00020324,2]
[372654506,1752735051997,-460.0,0.00020324,2]
[372654507,1752735052006,-460.0,0.00020325,2]
[372654508,1752735052016,-460.0,0.00020325,2]
[372654509,1752735052025,-468.46278351,0.00020325,2]
[372654510,1752735052035,-829.95,0.00020325,2]
[372654511,1752735052045,-460.0,0.00020325,2]
[372654512,1752735052055,-460.0,0.00020325,2]
[372654513,1752735052065,-460.0,0.00020327,2]
[372654514,1752735052075,-460.0,0.00020327,2]
[372654515,1752735052085,-353.0,0.00020403,2]
[372654516,1752735052097,-454.54545455,0.00020412,4]
[372654517,1752735052107,-700.0,0.00020416,2]
[372654518,1752735052117,-353.0,0.00020426,2]
[372654519,1752735052126,-2000.0,0.00020495,2]
[372654520,1752735052136,-3812.92271738,0.00020497,2]
[372654521,1752735052146,-1476.81,0.00020498,2]
[372654522,1752735052155,-2996.48,0.00020498,2]
[372654523,1752735052165,-929.92,0.00020498,2]
[372654524,1752735052174,-460.0,0.000205,2]
[372654525,1752735052184,-208.4063455,0.000205,2]
[372654526,1752735052194,-353.0,0.0002051,2]
[372654527,1752735052207,-2935.39259025,0.00020515,2]
[372654528,1752735052220,-2498.71531441,0.00020516,2]
[372654529,1752735052231,-13345.35673131,0.00020521,3]
[372654530,1752735052241,-353.0,0.00020532,2]
[372654531,1752735052251,-2500.0,0.00020564,2]
[372654532,1752735052261,-1449.636299,0.00020566,8]
[372654533,1752735052271,-1500.0,0.00020568,2]
[372654534,1752735052285,-1443.66462523,0.00020568,2]
[372654535,1752735052296,-1500.0,0.00020568,2]
[372654536,1752735052306,-1500.0,0.00020568,2]
[372654537,1752735052316,-667.95118347,0.00020568,2]
[372654538,1752735052326,-1500.0,0.00020568,2]
[372654539,1752735052336,-1001.46886915,0.00020568,2]
[372654540,1752735052346,-1500.0,0.00020568,2]
[372654541,1752735052356,-338.65287852,0.00020568,2]
[372654542,1752735052366,-673.26477435,0.00020568,2]
[372654543,1752735052375,-1500.0,0.00020568,2]
[372654544,1752735052384,-593.41252823,0.00020568,2]
[372654545,1752735052393,-360.0,0.00020584,2]
[372654546,1752735052403,-460.0,0.00020588,2]
[372654547,1752735052413,-460.0,0.00020589,2]
[372654548,1752735052422,-460.0,0.00020589,2]
[372654549,1752735052432,-1843.02,0.00020589,2]
[372654550,1752735052441,-460.0,0.00020592,2]
[372654551,1752735052451,-3457.88,0.00020592,2]
[372654552,1752735052461,-789.83,0.00020592,2]
[372654553,1752735052470,-4699.05,0.00020592,2]
[372654554,1752735052480,-460.45,0.00020592,2]
[372654555,1752735052491,-2440.55,0.00020592,2]
[372654556,1752735052500,-192.12,0.00020592,2]
[372654557,1752735052509,-1913.65,0.00020592,2]
[372654558,1752735052519,-460.0,0.00020592,2]
[372654559,1752735052529,-1594.34,0.00020592,2]
[372654560,1752735052539,-626.01,0.00020592,2]
[372654561,1752735052548,-460.0,0.00020593,2]
[372654562,1752735052557,-460.0,0.00020593,2]
[372654563,1752735052566,-460.0,0.00020593,2]
[372654564,1752735052576,-1300.71,0.00020593,2]
[372654565,1752735052586,-691.63,0.00020593,2]
[372654566,1752735052596,-474.33,0.00020593,2]
[372654567,1752735052606,-646.42,0.00020593,2]
[372654568,1752735052616,-498.58,0.00020593,2]
[372654569,1752735052626,-913.15,0.00020593,2]
[372654570,1752735052636,-531.78,0.00020593,2]
[372654571,1752735052647,-460.0,0.00020594,2]
[372654572,1752735052657,-500.0,0.00020594,2]
[372654573,1752735052667,-151.0,0.00020596,2]
[372654574,1752735052677,-732.55,0.00020596,2]
[372654575,1752735052687,-151.0,0.00020596,2]
[372654576,1752735052697,-151.0,0.00020596,2]
[372654577,1752735052707,-551.29,0.00020596,2]
[372654578,1752735052716,-693.221973,0.00020596,2]
[372654579,1752735052726,-693.221973,0.00020596,2]
[372654580,1752735052736,-460.0,0.00020596,2]
[372654581,1752735052746,-2703.32,0.00020596,2]
[372654582,1752735052756,-799.66,0.00020596,2]
[372654583,1752735052765,-460.0,0.00020596,2]
[372654584,1752735052775,-724.56,0.00020596,2]
[372654585,1752735052784,-151.0,0.00020597,2]
[372654586,1752735052794,-154.370341,0.00020597,2]
[372654587,1752735052803,-154.370341,0.00020597,2]
[372654588,1752735052813,-460.0,0.00020597,2]
[372654589,1752735052822,-460.0,0.00020597,2]
[372654590,1752735052832,-1211.48,0.00020597,2]
[372654591,1752735052843,-664.88,0.00020597,2]
[372654592,1752735052854,-1887.15,0.00020597,2]
[372654593,1752735052863,-507.28,0.00020597,2]
[372654594,1752735052873,-474.66,0.00020598,2]
[372654595,1752735052883,-460.0,0.00020598,2]
[372654596,1752735052893,-460.0,0.00020598,2]
[372654597,1752735052903,-522.87,0.00020598,2]
[372654598,1752735052913,-460.0,0.00020598,2]
[372654599,1752735052922,-460.0,0.00020598,2]
[372654600,1752735052932,-151.0,0.00020598,2]
[372654601,1752735052942,-151.0,0.00020598,2]
[372654602,1752735052951,-460.0,0.00020598,2]
[372654603,1752735052960,-640.23,0.00020598,2]
[372654604,1752735052969,-625.48,0.00020598,2]
[372654605,1752735052979,-460.0,0.00020598,2]
[372654606,1752735052988,-460.0,0.00020598,2]
[372654607,1752735052997,-460.0,0.00020598,2]
[372654608,1752735053007,-709.79,0.00020598,2]
[372654609,1752735053016,-460.0,0.00020598,2]
[372654610,1752735053026,-645.82,0.00020598,2]
[372654611,1752735053035,-460.0,0.00020599,2]
[372654612,1752735053044,-829.95,0.00020599,2]
[372654613,1752735053054,-460.0,0.00020599,2]
[372654614,1752735053063,-460.0,0.00020599,2]
[372654615,1752735053073,-460.0,0.00020601,2]
[372654616,1752735053082,-454.54545455,0.00020601,4]
[372654617,1752735053096,-294.79733788,0.00020623,2]
[372654618,1752735053105,-1000.0,0.00020648,2]
[372654619,1752735053115,-715.92829431,0.00020695,5]
[372654620,1752735053125,-151.0,0.000207,4]
[372654621,1752735053134,-13345.35673131,0.00020728,3]
[372654622,1752735053144,-2935.39259025,0.00020732,2]
[372654623,1752735053154,-1476.81,0.00020772,2]
[372654624,1752735053164,-2996.48,0.00020772,2]
[372654625,1752735053174,-929.92,0.00020772,2]
[372654626,1752735053183,-460.0,0.00020774,2]
[372654627,1752735053193,-476.16111942,0.000208,3]
[372654628,1752735053203,-200.0,0.0002083,2]
[372654629,1752735053216,-460.0,0.00020863,2]
[372654630,1752735053225,-460.0,0.00020863,2]
[372654631,1752735053235,-1843.02,0.00020863,2]
[372654632,1752735053245,-460.0,0.00020866,2]
[372654633,1752735053255,-3457.88,0.00020866,2]
[372654634,1752735053265,-789.83,0.00020866,2]
[372654635,1752735053274,-4699.05,0.00020866,2]
[372654636,1752735053285,-460.45,0.00020866,2]
[372654637,1752735053295,-2440.55,0.00020866,2]
[372654638,1752735053305,-1913.65,0.00020866,2]
[372654639,1752735053314,-460.0,0.00020866,2]
[372654640,1752735053324,-1594.34,0.00020866,2]
[372654641,1752735053333,-626.01,0.00020866,2]
[372654642,1752735053346,-460.0,0.00020867,2]
[372654643,1752735053355,-460.0,0.00020867,2]
[372654644,1752735053364,-460.0,0.00020867,2]
[372654645,1752735053374,-1300.71,0.00020867,2]
[372654646,1752735053384,-691.63,0.00020867,2]
[372654647,1752735053394,-474.33,0.00020867,2]
[372654648,1752735053404,-646.42,0.00020867,2]
[372654649,1752735053413,-498.58,0.00020867,2]
[372654650,1752735053423,-913.15,0.00020867,2]
[372654651,1752735053433,-531.78,0.00020867,2]
[372654652,1752735053442,-460.0,0.00020868,2]
[372654653,1752735053452,-500.0,0.00020868,2]
[372654654,1752735053462,-732.55,0.0002087,2]
[372654655,1752735053473,-551.29,0.0002087,2]
[372654656,1752735053483,-460.0,0.0002087,2]
[372654657,1752735053493,-2703.32,0.0002087,2]
[372654658,1752735053502,-799.66,0.0002087,2]
[372654659,1752735053512,-460.0,0.0002087,2]
[372654660,1752735053522,-724.56,0.0002087,2]
[372654661,1752735053532,-460.0,0.00020871,2]
[372654662,1752735053542,-460.0,0.00020871,2]
[372654663,1752735053552,-1211.48,0.00020871,2]
[372654664,1752735053562,-664.88,0.00020871,2]
[372654665,1752735053571,-1887.15,0.00020871,2]
[372654666,1752735053580,-507.28,0.00020871,2]
[372654667,1752735053591,-460.0,0.00020872,2]
[372654668,1752735053601,-460.0,0.00020872,2]
[372654669,1752735053610,-522.87,0.00020872,2]
[372654670,1752735053620,-460.0,0.00020872,2]
[372654671,1752735053630,-460.0,0.00020872,2]
[372654672,1752735053640,-460.0,0.00020872,2]
[372654673,1752735053649,-640.23,0.00020872,2]
[372654674,1752735053659,-625.48,0.00020872,2]
[372654675,1752735053668,-460.0,0.00020872,2]
[372654676,1752735053678,-460.0,0.00020872,2]
[372654677,1752735053687,-709.79,0.00020872,2]
[372654678,1752735053697,-460.0,0.00020872,2]
[372654679,1752735053707,-645.82,0.00020872,2]
[372654680,1752735053716,-460.0,0.00020873,2]
[372654681,1752735053726,-829.95,0.00020873,2]
[372654682,1752735053735,-460.0,0.00020873,2]
[372654683,1752735053745,-460.0,0.00020873,2]
[372654684,1752735053755,-460.0,0.00020875,2]
[372654685,1752735053764,-151.0,0.00020875,2]
[372654686,1752735053774,-151.0,0.00020875,2]
[372654687,1752735053784,-151.0,0.00020875,2]
[372654688,1752735053794,-151.28441638,0.00020875,2]
[372654689,1752735053804,-151.0,0.00020875,2]
[372654690,1752735053813,-151.28927516,0.00020875,2]
[372654691,1752735053823,-151.0,0.00020875,2]
[372654692,1752735053832,-445.0,0.00020875,2]
[372654693,1752735053843,-825.0,0.00020875,2]
[372654694,1752735053853,-198.0,0.00020875,2]
[372654695,1752735053863,-500.0,0.00020875,2]
[372654696,1752735053873,-151.0,0.00020875,2]
[372654697,1752735053882,-13345.35673131,0.00020934,4]
[372654698,1752735053892,-6802.93751134,0.00021,3]
[372654699,1752735053902,-160.0,0.00021,3]
[372654700,1752735053912,-37171.79107274,0.00021,2]
[372654701,1752735053922,-151.0,0.00021,3]
[372654702,1752735053932,-151.0,0.00021,2]
[372654703,1752735053942,-151.0,0.00021,2]
[372654704,1752735053952,-151.0,0.00021,2]
[372654705,1752735053962,-151.0,0.00021,2]
[372654706,1752735053971,-377.3,0.00021014,4]
[372654707,1752735053981,-2500.0,0.00021043,2]
[372654708,1752735053991,-460.0,0.00021046,2]
[372654709,1752735054001,-1476.81,0.00021046,2]
[372654710,1752735054011,-2996.48,0.00021046,2]
[372654711,1752735054021,-929.92,0.00021046,2]
[372654712,1752735054031,-494.3,0.00021048,2]
[372654713,1752735054041,-160.0,0.00021057,8]
[372654714,1752735054051,-3812.92271732,0.0002109,2]
[372654715,1752735054061,-223.0315306,0.00021105,2]
[372654716,1752735054071,-151.0,0.00021107,2]
[372654717,1752735054080,-151.0,0.00021107,2]
[372654718,1752735054090,-3000.0,0.00021112,2]
[372654719,1752735054100,-1320.15973591,0.00021116,2]
[372654720,1752735054110,-2000.0,0.00021116,2]
[372654721,1752735054155,-1012.55328243,0.00021116,2]
[372654722,1752735054166,-2000.0,0.00021116,2]
[372654723,1752735054176,-2000.0,0.00021116,2]
[372654724,1752735054185,-2000.0,0.00021116,2]
[372654725,1752735054195,-460.0,0.00021132,2]
[372654726,1752735054207,-460.0,0.00021137,2]
[372654727,1752735054218,-460.0,0.00021137,2]
[372654728,1752735054227,-1843.02,0.00021137,2]
[372654729,1752735054237,-517.94,0.0002114,2]
[372654730,1752735054247,-3457.88,0.0002114,2]
[372654731,1752735054256,-789.83,0.0002114,2]
[372654732,1752735054266,-4699.05,0.0002114,2]
[372654733,1752735054275,-460.45,0.0002114,2]
[372654734,1752735054285,-2440.55,0.0002114,2]
[372654735,1752735054294,-1913.65,0.0002114,2]
[372654736,1752735054303,-460.0,0.0002114,2]
[372654737,1752735054313,-1594.34,0.0002114,2]
[372654738,1752735054322,-626.01,0.0002114,2]
[372654739,1752735054331,-460.0,0.00021141,2]
[372654740,1752735054341,-460.0,0.00021141,2]
[372654741,1752735054350,-460.0,0.00021141,2]
[372654742,1752735054359,-1300.71,0.00021141,2]
[372654743,1752735054369,-691.63,0.00021141,2]
[372654744,1752735054379,-474.33,0.00021141,2]
[372654745,1752735054388,-646.42,0.00021141,2]
[372654746,1752735054398,-498.58,0.00021141,2]
[372654747,1752735054407,-913.15,0.00021141,2]
[372654748,1752735054416,-531.78,0.00021141,2]
[372654749,1752735054426,-13345.35673131,0.00021141,4]
[372654750,1752735054435,-460.0,0.00021142,2]
[372654751,1752735054444,-519.88,0.00021142,2]
[372654752,1752735054453,-732.55,0.00021144,2]
[372654753,1752735054463,-551.29,0.00021144,2]
[372654754,1752735054473,-460.0,0.00021144,2]
[372654755,1752735054483,-2703.32,0.00021144,2]
[372654756,1752735054492,-799.66,0.00021144,2]
[372654757,1752735054502,-460.0,0.00021144,2]
[372654758,1752735054511,-724.56,0.00021144,2]
[372654759,1752735054521,-198.40131808,0.00021145,2]
[372654760,1752735054530,-460.0,0.00021145,2]
[372654761,1752735054541,-1211.48,0.00021145,2]
[372654762,1752735054550,-664.88,0.00021145,2]
[372654763,1752735054560,-1887.15,0.00021145,2]
[372654764,1752735054570,-507.28,0.00021145,2]
[372654765,1752735054580,-460.0,0.00021146,2]
[372654766,1752735054591,-460.0,0.00021146,2]
[372654767,1752735054601,-522.87,0.00021146,2]
[372654768,1752735054610,-460.0,0.00021146,2]
[372654769,1752735054620,-460.0,0.00021146,2]
[372654770,1752735054630,-460.0,0.00021146,2]
[372654771,1752735054639,-640.23,0.00021146,2]
[372654772,1752735054649,-625.48,0.00021146,2]
[372654773,1752735054659,-460.0,0.00021146,2]
[372654774,1752735054669,-709.79,0.00021146,2]
[372654775,1752735054679,-460.0,0.00021146,2]
[372654776,1752735054688,-645.82,0.00021146,2]
[372654777,1752735054699,-460.0,0.00021147,2]
[372654778,1752735054708,-829.95,0.00021147,2]
[372654779,1752735054718,-483.87808855,0.00021147,2]
[372654780,1752735054727,-460.0,0.00021147,2]
[372654781,1752735054736,-151.0,0.00021149,2]
[372654782,1752735054746,-265.60140118,0.00021149,2]
[372654783,1752735054755,-151.0,0.00021149,2]
[372654784,1752735054764,-257.47516588,0.00021149,2]
[372654785,1752735054773,-445.0,0.00021149,2]
[372654786,1752735054782,-825.0,0.00021149,2]
[372654787,1752735054792,-500.0,0.00021149,2]
[372654788,1752735054802,-567.52452644,0.00021149,2]
[372654789,1752735054812,-160.0,0.00021166,9]
[372654790,1752735054822,-1500.0,0.00021196,2]
[372654791,1752735054831,-189.359729,0.00021241,2]
[372654792,1752735054841,-189.359729,0.00021241,2]
[372654793,1752735054851,-232.2161271,0.00021241,2]
[372654794,1752735054860,-153.0,0.00021241,2]
[372654795,1752735054870,-153.0,0.00021241,2]
[372654796,1752735054880,-153.0,0.00021241,2]
[372654797,1752735054890,-306.714468,0.00021241,2]
[372654798,1752735054900,-500.0,0.00021268,2]
[372654799,1752735054910,-500.0,0.00021268,2]
[372654800,1752735054919,-500.0,0.00021268,2]
[372654801,1752735054929,-500.0,0.00021268,2]
[372654802,1752735054939,-501.55540083,0.00021268,2]
[372654803,1752735054948,-500.0,0.00021268,2]
[372654804,1752735054958,-160.0,0.00021276,10]
[372654805,1752735054968,-2498.71531441,0.00021285,2]
[372654806,1752735054977,-160.0,0.00021287,2]
[372654807,1752735054987,-163.12905997,0.00021287,2]
[372654808,1752735054996,-533.02226849,0.00021287,2]
[372654809,1752735055006,-154.0,0.00021287,2]
[372654810,1752735055016,-154.0,0.00021287,2]
[372654811,1752735055025,-154.0,0.00021287,2]
[372654812,1752735055035,-211.33947274,0.00021287,2]
[372654813,1752735055045,-324.0,0.00021287,2]
[372654814,1752735055054,-183.67082305,0.00021287,2]
[372654815,1752735055064,-460.0,0.0002132,2]
[372654816,1752735055074,-1476.81,0.0002132,2]
[372654817,1752735055083,-504.272118,0.0002132,2]
[372654818,1752735055093,-504.272118,0.0002132,2]
[372654819,1752735055103,-2996.48,0.0002132,2]
[372654820,1752735055113,-929.92,0.0002132,2]
[372654821,1752735055122,-152.032092,0.0002132,2]
[372654822,1752735055132,-151.0,0.0002132,2]
[372654823,1752735055141,-13345.35673131,0.00021348,5]
[372654824,1752735055151,-160.0,0.00021385,11]
[372654825,1752735055160,-151.0,0.000214,3]
[372654826,1752735055170,-460.0,0.00021411,2]
[372654827,1752735055179,-460.0,0.00021411,2]
[372654828,1752735055189,-1843.02,0.00021411,2]
[372654829,1752735055198,-3457.88,0.00021414,2]
[372654830,1752735055210,-789.83,0.00021414,2]
[372654831,1752735055221,-4699.05,0.00021414,2]
[372654832,1752735055230,-460.45,0.00021414,2]
[372654833,1752735055240,-2440.55,0.00021414,2]
[372654834,1752735055251,-1913.65,0.00021414,2]
[372654835,1752735055260,-460.0,0.00021414,2]
[372654836,1752735055270,-1594.34,0.00021414,2]
[372654837,1752735055279,-626.01,0.00021414,2]
[372654838,1752735055289,-460.0,0.00021415,2]
[372654839,1752735055300,-460.0,0.00021415,2]
[372654840,1752735055309,-1300.71,0.00021415,2]
[372654841,1752735055318,-691.63,0.00021415,2]
[372654842,1752735055329,-474.33,0.00021415,2]
[372654843,1752735055338,-646.42,0.00021415,2]
[372654844,1752735055348,-498.58,0.00021415,2]
[372654845,1752735055358,-913.15,0.00021415,2]
[372654846,1752735055367,-531.78,0.00021415,2]
[372654847,1752735055378,-460.0,0.00021416,2]
[372654848,1752735055387,-732.55,0.00021418,2]
[372654849,1752735055397,-551.29,0.00021418,2]
[372654850,1752735055407,-460.0,0.00021418,2]
[372654851,1752735055416,-2703.32,0.00021418,2]
[372654852,1752735055426,-799.66,0.00021418,2]
[372654853,1752735055435,-460.0,0.00021418,2]
[372654854,1752735055445,-724.56,0.00021418,2]
[372654855,1752735055455,-460.0,0.00021419,2]
[372654856,1752735055465,-1211.48,0.00021419,2]
[372654857,1752735055474,-664.88,0.00021419,2]
[372654858,1752735055484,-1887.15,0.00021419,2]
[372654859,1752735055494,-507.28,0.00021419,2]
[372654860,1752735055503,-444.56,0.0002142,2]
[372654861,1752735055513,-460.0,0.0002142,2]
[372654862,1752735055523,-522.87,0.0002142,2]
[372654863,1752735055532,-460.0,0.0002142,2]
[372654864,1752735055542,-460.0,0.0002142,2]
[372654865,1752735055552,-460.0,0.0002142,2]
[372654866,1752735055562,-640.23,0.0002142,2]
[372654867,1752735055572,-625.48,0.0002142,2]
[372654868,1752735055581,-460.0,0.0002142,2]